bitfinex-derivatives/quotes_ETHF0:USTF0_20250620
["timestamp","ask_amount","ask_price","bid_price","bid_amount"]
[1750459499149,2.24383,2397.8,2397.2,4.11643]
[1750459499150,2.24383,2397.8,2397.7,0.83404]
[1750459499350,1.4098,2397.8,2397.7,0.83404]
[1750459500047,2.24381,2397.8,2397.7,0.83404]
[1750459501054,1.4098,2397.8,2397.3,10.43]
[1750459501254,0.83408,2397.7,2397.6,0.83407]
[1750459501456,0.83408,2397.7,2397.6,4.04187]
[1750459501658,0.83408,2397.7,2397.6,0.83407]
[1750459501958,2.24384,2397.8,2397.7,0.83404]
[1750459503156,3.2078,2397.9,2397.7,3.2078]
[1750459503356,0.83403,2397.8,2397.7,0.83403]
[1750459503551,3.2078,2397.9,2397.8,4.04181]
[1750459503853,4.0418,2397.9,2397.8,3.2078]
[1750459504054,4.0418,2397.9,2397.8,4.04181]
[1750459504261,0.83395,2398.0,2397.8,13.6378]
[1750459504457,4.5133,2398.2,2398.0,3.2078]
[1750459504658,5.34718,2398.2,2398.1,4.04171]
[1750459505058,5.34718,2398.2,2398.1,5.28336015]
[1750459505560,5.34718,2398.2,2398.1,3.2078]
[1750459505959,5.34718,2398.2,2398.1,4.44945015]
[1750459506263,5.34718,2398.2,2398.1,5.28336015]
[1750459506450,5.34718,2398.2,2398.1,4.44945015]
[1750459506652,5.34718,2398.2,2398.1,5.28336015]
[1750459506955,5.34718,2398.2,2398.1,4.44945015]
[1750459507356,5.34718,2398.2,2398.1,1.24165015]
[1750459507557,0.83391,2398.1,2398.0,1.24165015]
[1750459507860,2.15521,2398.1,2398.0,1.24165015]
[1750459509259,2.15521,2398.1,2398.0,0.83394]
[1750459509663,0.83394,2398.0,2397.9,2.48959308]
[1750459509869,2.17714,2398.0,2397.9,4.86343308]
[1750459510363,0.83401,2397.8,2397.7,1.24269279]
[1750459510667,0.83404,2397.7,2397.6,1.24269279]
[1750459510868,2.17724,2397.7,2397.6,1.24269279]
[1750459511159,7.17724,2397.7,2397.6,1.24269279]
[1750459511352,7.17724,2397.7,2397.5,1.24269279]
[1750459511353,0.83408,2397.6,2397.5,1.24269279]
[1750459511554,2.17728,2397.6,2397.5,1.24269279]
[1750459513068,2.17728,2397.6,2397.5,2.07680279]
[1750459513463,2.17728,2397.6,2397.5,1.24269279]
[1750459513768,2.17728,2397.6,2397.5,2.07680279]
[1750459513966,2.17728,2397.6,2397.5,1.24269279]
[1750459514366,1.3432,2397.6,2397.5,2.07680279]
[1750459514674,1.3432,2397.6,2397.5,2.48974308]
[1750459516464,1.3432,2397.6,2397.5,0.83411]
[1750459517267,2.17728,2397.6,2397.5,0.83411]
[1750459517472,2.17728,2397.6,2397.5,2.46365238]
[1750459517673,2.17728,2397.6,2397.4,3.29779238]
[1750459517865,2.17728,2397.6,2397.5,3.2078]
[1750459518373,2.17728,2397.6,2397.5,2.46365238]
[1750459518573,1.3432,2397.6,2397.5,2.46365238]
[1750459519371,1.3432,2397.6,2397.5,3.29776238]
[1750459519572,0.83404,2397.7,2397.5,3.29776238]
[1750459519877,0.83404,2397.7,2397.6,3.2078]
[1750459520068,2.13834,2397.7,2397.6,3.2078]
[1750459520269,0.83408,2397.6,2397.5,3.29776238]
[1750459520468,0.83408,2397.6,2397.5,0.83411]
[1750459520773,0.83408,2397.6,2397.5,4.04191]
[1750459520974,0.83408,2397.6,2397.5,3.2078]
[1750459521473,0.83408,2397.6,2397.5,5.70336109]
[1750459521668,0.83408,2397.6,2397.5,4.04191]
[1750459522370,0.83408,2397.6,2397.5,3.2078]
[1750459523375,0.83408,2397.6,2397.5,4.04191]
[1750459523570,5.34617,2397.7,2397.6,0.83408]
[1750459523875,4.04184,2397.7,2397.6,5.70330778]
[1750459524075,4.04184,2397.7,2397.6,2.49550778]
[1750459525466,4.04184,2397.7,2397.6,3.32958778]
[1750459525871,3.2078,2397.7,2397.6,5.70330778]
[1750459526068,3.2078,2397.7,2397.6,3.2078]
[1750459526376,4.04184,2397.7,2397.6,4.04188]
[1750459527377,4.04184,2397.7,2397.6,3.2078]
[1750459527978,4.04184,2397.7,2397.6,4.04188]
[1750459528180,4.04184,2397.7,2397.6,3.2078]
[1750459528677,3.2078,2397.7,2397.6,4.04188]
[1750459529278,0.83398,2397.9,2397.6,6.49086986]
[1750459529576,0.83398,2397.9,2397.8,0.83401]
[1750459529783,0.83398,2397.9,2397.8,4.04181]
[1750459529975,0.83398,2397.9,2397.8,3.2078]
[1750459531175,0.83404,2397.7,2397.6,3.28306986]
[1750459531376,0.83404,2397.7,2397.6,6.49086986]
[1750459531578,0.83404,2397.7,2397.6,7.32494986]
[1750459531881,6.71624,2397.8,2397.4,3.28306986]
[1750459532073,0.83411,2397.5,2397.4,3.28306986]
[1750459532269,0.83415,2397.4,2397.3,3.28306986]
[1750459532465,0.83414,2397.5,2397.4,3.2078]
[1750459532669,2.2575,2397.6,2397.4,6.53488861]
[1750459532871,3.2078,2397.8,2397.5,3.2078]
[1750459533073,0.83407,2397.7,2397.6,3.2078]
[1750459534685,0.83407,2397.7,2397.6,4.04188]
[1750459534892,0.83407,2397.7,2397.6,3.2078]
[1750459535080,13.76557233,2397.7,2397.3,1.66349123]
[1750459535275,2.08569,2397.1,2396.6,2.49614022]
[1750459535475,2.08569,2397.1,2396.5,2.49614022]
[1750459535476,0.83443,2396.6,2396.5,2.49614022]
[1750459535979,2.25013,2396.6,2396.5,2.49614022]
[1750459536283,0.83446,2396.5,2396.4,2.49614022]
[1750459536485,0.8345,2396.4,2396.3,2.49614022]
[1750459536681,0.8345,2396.4,2396.2,0.83454]
[1750459536881,0.8345,2396.4,2396.1,10.25658]
[1750459537185,0.8345,2396.4,2396.3,2.49297688]
[1750459537584,4.0423,2396.4,2396.3,2.49297688]
[1750459539186,0.83453,2396.3,2396.2,3.92517688]
[1750459539588,0.83453,2396.3,2396.2,2.49297688]
[1750459542287,3.2078,2396.4,2396.2,2.49297688]
[1750459542886,8.05075233,2396.8,2396.3,0.83453]
[1750459542887,4.5781,2396.8,2396.3,0.83453]
[1750459543093,0.83448,2396.5,2396.2,4.66631688]
[1750459543286,0.83446,2396.6,2396.3,0.83453]
[1750459543792,0.83446,2396.6,2396.3,2.22483]
[1750459544192,0.83446,2396.6,2396.4,0.8345]
[1750459544389,0.83447,2396.5,2396.3,2.22481]
[1750459544589,0.83447,2396.5,2396.3,0.83451]
[1750459545093,0.83447,2396.5,2396.3,3.32748688]
[1750459545490,0.8345,2396.4,2396.2,3.32751688]
[1750459545685,0.83448,2396.5,2396.3,0.83453]
[1750459546400,0.83471,2395.8,2395.7,4.10383732]
[1750459546692,0.83471,2395.8,2395.0,10.29509465]
[1750459546693,0.83486,2395.4,2395.1,1.49363]
[1750459546893,0.83501,2395.0,2394.8,1.394]
[1750459547087,0.8349,2395.3,2394.9,3.2078]
[1750459547288,3.2078,2395.1,2394.7,10.1394]
[1750459547491,0.83505,2394.9,2394.7,10.1394]
[1750459547692,0.83505,2394.9,2394.7,0.7144]
[1750459547990,3.2078,2395.1,2394.7,0.7144]
[1750459547991,4.04276,2395.1,2394.7,0.7144]
[1750459548197,4.04276,2395.1,2394.8,0.83503]
[1750459548690,3.2078,2395.1,2394.9,0.83501]
[1750459548992,3.2078,2395.1,2394.8,1.394]
[1750459548993,0.835,2395.0,2394.7,1.54947]
[1750459549386,4.04277,2395.1,2394.8,0.83505]
[1750459549996,9.88825233,2395.1,2394.5,3.2078]
[1750459550189,6.68045233,2394.8,2394.4,0.6781]
[1750459550489,3.2078,2394.8,2394.4,0.6781]
[1750459550792,0.8351,2394.7,2394.5,1.3682]
[1750459551289,0.8351,2394.7,2394.4,1.51326]
[1750459551290,0.83513,2394.6,2394.4,0.6781]
[1750459552295,0.83511,2394.7,2394.4,1.51329]
[1750459552689,0.83513,2394.6,2394.4,0.6781]
[1750459552895,0.83511,2394.7,2394.4,1.51329]
[1750459553092,0.83519,2394.4,2394.3,9.428]
[1750459553295,0.83519,2394.4,2392.1,4.10383732]
[1750459553296,3.2078,2393.5,2392.1,4.10383732]
[1750459553594,6.68045233,2392.8,2392.2,3.2078]
[1750459553789,9.88825233,2392.8,2392.2,3.2078]
[1750459553986,8.09485233,2393.0,2392.2,3.2078]
[1750459554186,3.2078,2392.9,2392.3,4.5104]
[1750459554994,3.2078,2392.9,2392.6,0.83581]
[1750459555194,3.2078,2392.9,2392.5,0.83584]
[1750459555389,3.2078,2392.6,2392.4,0.7118]
[1750459555594,4.04364,2392.6,2392.1,0.83597]
[1750459555892,3.2078,2392.6,2392.1,1.3876]
[1750459556089,3.2078,2392.6,2392.2,0.83594]
[1750459556491,3.2078,2392.6,2392.1,12.2516]
[1750459556686,3.2078,2392.3,2392.1,10.864]
[1750459556999,4.04374,2392.3,2391.7,12.9674]
[1750459557296,4.6175,2392.3,2391.7,12.9674]
[1750459557595,3.2078,2392.3,2392.0,0.83601]
[1750459557989,3.2078,2392.3,2391.7,12.9674]
[1750459558186,3.2078,2392.3,2392.2,0.83596]
[1750459558398,3.2078,2392.6,2392.3,0.83593]
[1750459558695,3.2078,2392.6,2392.3,0.8359]
[1750459558897,3.2078,2392.6,2392.0,1.4005]
[1750459559398,3.2078,2392.6,2392.4,0.83587]
[1750459560897,3.2078,2392.6,2392.5,0.83586]
[1750459561100,3.2078,2393.0,2392.6,0.8358]
[1750459561396,3.2078,2392.7,2392.5,0.83584]
[1750459561598,3.2078,2392.7,2392.4,0.83587]
[1750459562190,0.83587,2392.5,2392.3,1.4005]
[1750459562398,4.04371,2392.4,2392.2,10.871]
[1750459562594,3.2078,2392.4,2392.2,10.871]
[1750459562790,0.83596,2392.2,2391.7,0.7118]
[1750459562992,4.04367,2392.5,2391.7,0.7118]
[1750459563196,3.2078,2392.5,2391.8,1.31]
[1750459563398,0.83597,2392.2,2391.9,0.83604]
[1750459563597,4.04377,2392.2,2391.9,0.83604]
[1750459563794,3.2078,2392.2,2392.0,0.83601]
[1750459564002,4.04377,2392.2,2391.9,0.83606]
[1750459564190,3.2078,2392.5,2391.8,2.09026]
[1750459564392,3.2078,2393.5,2392.4,2.08969]
[1750459564593,3.2078,2393.8,2393.2,3.2078]
[1750459564908,3.2078,2393.5,2393.2,10.873]
[1750459565101,7.63479275,2393.3,2392.7,3.2078]
[1750459565403,0.83587,2392.5,2391.8,3.2078]
[1750459565593,10.84259275,2392.8,2392.0,0.83602]
[1750459565594,0.83594,2392.3,2392.0,0.83602]
[1750459565789,0.83597,2392.2,2391.9,0.83606]
[1750459565991,2.19797,2392.2,2391.9,0.83606]
[1750459566599,2.19797,2392.2,2392.0,10.873]
[1750459566798,1.362,2392.2,2391.8,3.2078]
[1750459567197,3.2078,2392.4,2391.8,3.2078]
[1750459567392,3.2078,2392.4,2392.1,0.83596]
[1750459567393,1.362,2392.4,2392.1,0.83596]
[1750459567602,2.1979,2392.4,2392.1,0.83596]
[1750459568296,1.362,2392.4,2391.8,3.2078]
[1750459568705,2.1979,2392.4,2391.8,4.5626]
[1750459568902,0.83593,2392.3,2392.0,0.83602]
[1750459569108,1.3125,2392.3,2392.0,0.83602]
[1750459569408,1.3125,2392.3,2391.9,0.83605]
[1750459569707,1.3125,2392.3,2391.9,11.71105]
[1750459569905,2.14845,2392.3,2391.9,11.71105]
[1750459570601,2.14845,2392.3,2392.0,0.83602]
[1750459571109,0.83601,2392.1,2391.9,10.875]
[1750459571309,0.83603,2392.0,2391.9,10.875]
[1750459571609,2.25833,2392.0,2391.8,10.876]
[1750459571809,2.25833,2392.0,2391.5,48.125]
[1750459572001,2.25833,2392.0,2391.6,0.83617]
[1750459572609,3.2078,2392.4,2391.7,3.2078]
[1750459572806,3.2078,2392.4,2392.3,0.83593]
[1750459573006,3.2078,2392.4,2392.2,0.83595]
[1750459573405,18.51079275,2392.3,2391.2,0.83631]
[1750459573605,3.2078,2391.3,2390.8,0.83643]
[1750459573801,1.3256,2391.2,2390.8,3.2078]
[1750459574000,0.83636,2391.1,2390.8,0.83644]
[1750459574202,3.2078,2391.3,2390.7,3.2078]
[1750459574396,0.83632,2391.2,2390.9,0.83639]
[1750459574603,1.3256,2391.2,2390.9,0.83639]
[1750459574804,1.3256,2391.2,2391.0,0.83638]
[1750459575202,3.2078,2391.3,2391.2,0.83631]
[1750459575514,0.83623,2391.5,2391.2,0.83629]
[1750459575711,1.3256,2391.4,2391.2,0.83629]
[1750459576503,3.2078,2391.6,2391.1,2.09087]
[1750459576709,4.04389,2391.9,2391.6,0.83616]
[1750459577009,4.04389,2391.9,2391.5,11.71419]
[1750459577212,3.2078,2391.6,2391.1,3.47237]
[1750459577512,3.2078,2391.4,2390.9,48.147]
[1750459577807,3.2078,2391.1,2391.0,0.83638]
[1750459578107,3.2078,2391.1,2390.6,0.7114]
[1750459578308,3.2078,2390.7,2390.6,1.54792]
[1750459578608,3.2078,2390.7,2390.4,10.879]
[1750459578801,3.2078,2390.7,2390.3,10.879]
[1750459579003,3.2078,2390.8,2390.5,0.83656]
[1750459579203,3.2078,2390.8,2390.6,0.83651]
[1750459579510,2.25419,2390.7,2390.3,0.83661]
[1750459579698,3.2078,2390.5,2390.4,0.83659]
[1750459580013,3.2078,2390.5,2390.0,11.5644]
[1750459580014,4.04437,2390.5,2390.0,11.5644]
[1750459580205,1.3757,2390.4,2390.3,0.83663]
[1750459580407,3.2078,2390.8,2390.1,2.09172]
[1750459580606,3.2078,2390.8,2390.5,0.83654]
[1750459580910,1.3757,2390.7,2390.4,0.83657]
[1750459581110,3.2078,2390.5,2390.4,0.83657]
[1750459581308,1.3757,2390.7,2390.0,14.7722]
[1750459581612,3.2078,2390.8,2390.5,0.83653]
[1750459582010,5.41995,2390.8,2390.4,0.83657]
[1750459582208,4.5835,2390.8,2390.5,0.83656]
[1750459582416,3.2078,2390.8,2390.6,0.83651]
[1750459582610,3.2078,2390.8,2390.7,0.83649]
[1750459583410,1.3753,2391.0,2390.9,0.83642]
[1750459583611,3.2078,2391.1,2391.0,0.83638]
[1750459585208,2.21153,2391.5,2390.9,10.658]
[1750459585209,3.2078,2391.5,2391.2,0.8363]
[1750459585611,1.3753,2391.4,2391.2,0.8363]
[1750459585805,1.3753,2391.4,2391.2,0.83628]
[1750459586011,1.3753,2391.4,2391.3,0.83628]
[1750459586915,1.3753,2391.4,2391.2,0.83629]
[1750459587512,1.3753,2391.4,2391.3,0.83628]
[1750459588212,1.3753,2391.4,2391.2,0.83629]
[1750459588618,1.3753,2391.4,2391.2,0.83631]
[1750459588804,1.3753,2391.4,2391.1,0.83632]
[1750459589216,1.3753,2391.4,2391.2,0.83631]
[1750459589623,1.3753,2391.4,2391.3,0.83628]
[1750459590315,1.3753,2391.4,2391.2,0.83629]
[1750459591118,2.21155,2391.4,2391.1,0.83633]
[1750459591413,8.09048471,2391.4,2390.9,3.2078]
[1750459591612,8.09048471,2391.4,2390.4,48.166]
[1750459591613,3.2078,2391.2,2390.5,2.09135]
[1750459591812,1.3998,2391.1,2390.9,0.8364]
[1750459592211,2.23615,2391.1,2390.8,0.83643]
[1750459592412,2.23615,2391.1,2390.5,2.09135]
[1750459592413,1.3998,2391.1,2390.9,0.83641]
[1750459592910,2.23615,2391.1,2390.8,0.83643]
[1750459593112,0.83643,2390.9,2390.6,0.8365]
[1750459593415,1.3998,2390.8,2390.7,0.83649]
[1750459595015,1.3998,2390.8,2390.6,0.8365]
[1750459595313,3.2078,2391.2,2390.4,58.08898471]
[1750459595614,2.13742,2391.5,2391.2,0.83629]
[1750459595821,1.3012,2391.5,2391.1,3.2078]
[1750459596021,2.13742,2391.5,2391.2,0.83629]
[1750459596218,1.3012,2391.5,2390.9,10.9463]
[1750459596420,2.13743,2391.5,2391.2,0.8363]
[1750459596920,0.83624,2391.4,2391.2,0.8363]
[1750459597116,1.3012,2391.4,2391.2,0.8363]
[1750459597311,1.3012,2391.4,2391.3,0.83628]
[1750459598115,3.2078,2391.6,2391.0,2.09092]
[1750459598116,3.2078,2391.6,2391.5,0.83621]
[1750459598317,1.3018,2391.9,2391.8,0.8361]
[1750459598619,1.3018,2391.9,2391.7,0.83612]
[1750459598918,3.2078,2392.2,2392.0,0.83601]
[1750459599120,4.5096,2392.2,2391.7,3.2078]
[1750459599314,4.5096,2392.2,2392.0,0.83602]
[1750459599514,4.5096,2392.2,2392.1,0.836]
[1750459599716,4.5096,2392.2,2392.0,0.83601]
[1750459600417,4.5096,2392.2,2392.1,0.836]
[1750459601023,5.34557,2392.2,2392.0,0.83601]
[1750459601320,5.34557,2392.2,2391.9,0.83605]
[1750459601521,5.34557,2392.2,2392.0,0.83603]
[1750459601714,4.5096,2392.2,2392.1,0.836]
[1750459603325,27.51739201,2392.2,2391.5,0.999]
[1750459603521,0.83632,2391.2,2390.7,6.48954691]
[1750459603721,1.4102,2391.1,2390.9,0.8364]
[1750459603924,2.24655,2391.1,2390.9,0.8364]
[1750459604426,2.24655,2391.1,2390.9,3.33296435]
[1750459604615,1.4102,2391.1,2390.9,2.49656435]
[1750459604816,1.4102,2391.1,2391.0,0.83638]
[1750459605226,1.4102,2391.1,2390.9,3.33295435]
[1750459605417,2.24655,2391.1,2390.9,3.33295435]
[1750459605819,1.4102,2391.1,2391.0,0.83638]
[1750459606022,1.4102,2391.1,2390.9,3.33295435]
[1750459606222,2.24656,2391.1,2390.9,2.49656435]
[1750459608429,2.24657,2391.1,2390.9,2.49656435]
[1750459608621,2.24657,2391.1,2390.8,0.83644]
[1750459609230,0.83645,2390.9,2390.7,10.285]
[1750459609433,2.09105,2390.9,2390.4,3.2078]
[1750459609625,0.83664,2390.3,2390.0,0.83672]
[1750459609827,0.83673,2390.0,2389.9,6.48954691]
[1750459610128,0.83673,2390.0,2389.9,3.2078]
[1750459610330,0.83672,2390.1,2389.9,3.2078]
[1750459611425,0.83673,2390.0,2389.9,3.2078]
[1750459612428,0.83672,2390.1,2389.9,3.2078]
[1750459612734,4.04444,2390.3,2390.0,0.83673]
[1750459613034,4.04444,2390.3,2389.9,4.04455]
[1750459613233,4.04444,2390.3,2390.0,0.83672]
[1750459613434,3.2078,2390.3,2390.0,0.83672]
[1750459613629,4.04444,2390.3,2390.0,0.83672]
[1750459613827,0.83677,2390.0,2389.7,3.28174691]
[1750459614025,8.01608471,2390.2,2389.6,0.83686]
[1750459614330,0.83675,2390.0,2389.5,3.2078]
[1750459614536,0.83675,2390.0,2389.7,0.83683]
[1750459614930,0.83675,2390.0,2389.5,4.5308]
[1750459614931,0.83678,2389.9,2389.6,0.83686]
[1750459615138,0.83682,2389.8,2389.5,4.0447]
[1750459615337,0.83682,2389.8,2389.5,3.2078]
[1750459615527,0.83682,2389.8,2389.5,4.04471]
[1750459615724,1.3009,2389.9,2389.5,4.04471]
[1750459615938,2.1377,2389.9,2389.5,4.04471]
[1750459616234,0.83671,2390.1,2389.8,0.8368]
[1750459616537,0.83673,2390.0,2389.7,0.83681]
[1750459616840,2.25423,2390.0,2389.7,0.83681]
[1750459617031,0.83677,2389.9,2389.6,0.83685]
[1750459617227,9.92298471,2389.7,2389.2,16.43154691]
[1750459617539,1.4175,2389.6,2389.2,13.1498]
[1750459617734,0.83691,2389.5,2389.2,13.1498]
[1750459617931,3.2078,2389.7,2389.2,13.1498]
[1750459618129,2.1211,2389.9,2389.6,0.83686]
[1750459618337,0.83681,2389.8,2389.6,0.83687]
[1750459618533,2.1211,2389.9,2389.2,15.24234]
[1750459618534,2.1211,2389.9,2389.3,2.09245]
[1750459618837,2.25428,2389.9,2389.7,0.83684]
[1750459619038,1.4175,2389.9,2389.7,0.83683]
[1750459619531,0.83687,2389.6,2389.5,3.2078]
[1750459619837,2.17282,2389.8,2389.5,0.83691]
[1750459620039,2.17282,2389.8,2389.2,13.1518]
[1750459620234,2.17282,2389.8,2389.3,1.335]
[1750459620434,1.336,2389.8,2389.3,1.335]
[1750459620743,0.83685,2389.7,2389.4,0.83692]
[1750459621335,0.83685,2389.7,2389.5,0.8369]
[1750459621532,2.17283,2389.8,2389.5,0.8369]
[1750459621734,0.83684,2389.7,2389.4,0.83692]
[1750459622135,2.17283,2389.8,2389.5,0.8369]
[1750459622341,0.83684,2389.7,2389.4,0.83692]
[1750459622538,0.83688,2389.6,2389.3,2.17195]
[1750459622841,0.83685,2389.7,2389.4,0.83691]
[1750459623539,0.83678,2389.9,2389.6,0.83685]
[1750459624040,1.3163,2389.9,2389.3,2.0874]
[1750459624244,3.2078,2390.0,2389.3,4.17976]
[1750459624435,0.83671,2390.1,2389.8,0.83678]
[1750459624637,0.8367,2390.1,2389.8,0.8368]
[1750459624842,3.2078,2390.3,2389.9,6.71518471]
[1750459625038,3.2078,2390.3,2389.9,8.14398471]
[1750459625243,3.2078,2390.3,2390.2,0.83666]
[1750459625445,3.2078,2390.3,2390.2,10.78166]
[1750459625743,3.2078,2390.3,2390.2,9.945]
[1750459626244,3.2078,2390.3,2390.2,10.78166]
[1750459626752,3.2078,2390.3,2388.9,9.945]
[1750459626753,2.09179,2390.1,2388.9,9.945]
[1750459626943,16.66018471,2390.4,2389.3,0.83697]
[1750459626944,0.8369,2389.6,2389.3,0.83697]
[1750459627138,6.71518471,2389.6,2389.0,1.3962]
[1750459627341,0.83703,2389.2,2389.0,0.83707]
[1750459627546,0.837,2389.3,2389.0,0.83708]
[1750459628046,0.837,2389.3,2389.0,0.83706]
[1750459628438,0.837,2389.3,2388.9,9.945]
[1750459628439,3.2078,2389.4,2388.9,9.945]
[1750459628634,3.2078,2389.7,2389.4,0.83691]
[1750459628942,0.83698,2389.3,2389.2,9.946]
[1750459629147,0.83697,2389.4,2389.2,9.946]
[1750459629449,0.83698,2389.3,2389.2,9.946]
[1750459629647,0.83696,2389.4,2389.2,9.946]
[1750459629946,1.4147,2389.6,2389.2,10.783]
[1750459629947,0.83693,2389.5,2389.2,10.783]
[1750459630144,0.83698,2389.3,2389.2,9.946]
[1750459630348,4.04476,2389.4,2389.2,9.946]
[1750459630742,4.04476,2389.4,2389.2,10.78301]
[1750459631338,0.83698,2389.3,2389.0,0.83706]
[1750459631534,0.83708,2389.0,2388.9,9.946]
[1750459631739,4.04487,2389.1,2388.9,9.946]
[1750459631946,0.83708,2389.0,2388.9,9.946]
[1750459632142,3.2078,2389.1,2388.2,3.28174691]
[1750459632341,1.4359,2389.2,2388.3,0.83733]
[1750459632342,3.2078,2388.4,2388.3,0.83733]
[1750459632542,3.2078,2388.4,2387.8,0.7673]
[1750459632737,3.2078,2388.1,2387.8,0.7673]
[1750459633044,0.83753,2387.8,2387.4,0.7609]
[1750459633245,9.92298471,2387.6,2386.9,3.2078]
[1750459633437,3.2078,2387.2,2387.0,0.83777]
[1750459633634,3.2078,2387.2,2386.7,11.3119]
[1750459633946,3.2078,2386.9,2386.5,3.2078]
[1750459634138,3.2078,2386.9,2386.3,0.7673]
[1750459634333,3.2078,2386.9,2386.4,1.34]
[1750459634535,3.2078,2386.9,2386.8,0.83785]
[1750459634735,3.2078,2387.2,2386.4,1.34]
[1750459634939,3.2078,2387.2,2386.4,11.10749422]
[1750459635142,3.2078,2387.2,2386.4,3.43497]
[1750459635337,3.2078,2387.2,2386.7,0.83786]
[1750459635543,3.2078,2387.2,2386.4,3.2078]
[1750459635744,3.2078,2387.2,2386.2,48.217]
[1750459635745,3.2078,2386.6,2386.2,48.217]
[1750459635944,0.7318,2387.1,2386.2,58.167]
[1750459636143,0.7318,2387.1,2386.1,3.2078]
[1750459636144,3.2078,2386.9,2386.1,3.2078]
[1750459636445,3.2078,2386.2,2385.7,0.24520762]
[1750459636848,3.2078,2385.9,2385.7,0.24520762]
[1750459637142,3.2078,2385.9,2385.0,10.88032422]
[1750459637143,0.8382,2385.8,2385.0,4.04627]
[1750459637342,3.2078,2385.1,2384.6,0.781]
[1750459637546,3.2078,2385.1,2384.7,9.97349145]
[1750459638048,3.2078,2384.8,2384.3,9.953]
[1750459638243,10.88032422,2384.4,2382.9,13.03799859]
[1750459638447,1.4092,2384.7,2383.2,3.2078]
[1750459638448,3.2078,2384.0,2383.2,3.2078]
[1750459638746,7.67252422,2384.7,2382.8,2.09814]
[1750459638747,3.2078,2384.7,2383.8,5.30507]
[1750459638948,3.2078,2384.7,2384.1,3.2078]
[1750459639137,3.2078,2385.3,2384.6,3.2078]
[1750459639342,3.2078,2385.3,2385.2,0.83842]
[1750459639545,3.2078,2385.3,2385.2,11.13742]
[1750459639746,3.2078,2385.6,2385.5,0.83831]
[1750459639958,1.4092,2386.3,2385.5,48.234]
[1750459640142,3.2078,2385.7,2384.5,3.2078]
[1750459640344,3.2078,2385.0,2384.5,10.299]
[1750459640642,3.2078,2385.0,2384.3,10.302]
[1750459640843,3.2078,2384.4,2383.7,10.302]
[1750459641037,10.302,2385.3,2383.7,10.302]
[1750459641038,3.2078,2384.7,2383.9,3.2078]
[1750459641237,1.2995,2384.3,2383.8,10.302]
[1750459641948,1.2995,2384.3,2383.8,0.83888]
[1750459642144,1.2995,2384.3,2383.6,3.2078]
[1750459642345,1.2995,2384.3,2383.8,0.83891]
[1750459642645,1.2995,2384.3,2383.6,3.2078]
[1750459642842,1.2995,2384.3,2383.7,10.302]
[1750459643044,1.2995,2384.3,2383.8,0.83889]
[1750459643244,1.2995,2384.3,2383.8,10.302]
[1750459643544,3.2078,2384.1,2383.0,52.1924]
[1750459643845,3.2078,2384.1,2382.2,2.09866]
[1750459643846,3.2078,2383.1,2382.2,3.2078]
[1750459644050,3.2078,2382.8,2382.4,0.83939]
[1750459644349,3.2078,2382.8,2382.0,1.4312]
[1750459644350,1.3439,2382.7,2382.0,1.4312]
[1750459644548,1.3439,2382.7,2382.1,10.653]
[1750459644743,3.2078,2383.0,2382.7,0.83929]
[1750459644944,1.3439,2383.2,2382.8,11.49224]
[1750459645143,1.3439,2383.2,2382.7,3.2078]
[1750459645344,3.2078,2382.8,2382.0,3.2078]
[1750459645547,3.2078,2383.2,2382.5,3.2078]
[1750459645846,1.3439,2383.3,2382.8,3.2078]
[1750459646045,3.2078,2383.5,2382.9,0.08393134]
[1750459646249,3.2078,2383.5,2383.1,0.83915]
[1750459646549,1.3702,2383.4,2382.8,10.653]
[1750459646746,1.3702,2383.4,2383.3,0.83908]
[1750459647146,3.2078,2383.7,2383.3,10.658]
[1750459647448,3.2078,2384.5,2383.7,0.83893]
[1750459647646,0.7285,2384.7,2383.2,3.2078]
[1750459647647,1.3702,2384.1,2383.8,10.658]
[1750459647847,3.2078,2384.5,2383.9,10.658]
[1750459648054,3.2078,2384.5,2384.0,0.83881]
[1750459648246,1.3702,2384.4,2384.1,0.8388]
[1750459648746,1.3702,2384.4,2384.0,0.83882]
[1750459649145,1.3702,2384.4,2383.9,10.658]
[1750459649146,1.3702,2384.4,2383.9,11.49686]
[1750459649352,3.2078,2384.3,2384.1,0.83879]
[1750459649546,1.3597,2384.2,2384.0,0.83882]
[1750459649746,1.3597,2384.2,2384.1,0.8388]
[1750459649947,1.3597,2384.2,2383.4,50.38658]
[1750459649948,1.3597,2384.2,2383.4,48.289]
[1750459650154,3.2078,2383.9,2383.6,11.49895]
[1750459650348,3.2078,2383.9,2383.6,10.66]
[1750459650653,0.7285,2384.7,2383.6,10.66]
[1750459650654,3.2078,2384.5,2383.7,2.09736]
[1750459650858,3.2078,2384.5,2383.8,3.2078]
[1750459651047,1.3597,2384.4,2384.3,0.83873]
[1750459652162,1.3597,2384.4,2384.2,11.49874]
[1750459652450,1.3597,2384.4,2384.3,0.83873]
[1750459653053,3.2078,2384.5,2384.4,0.8387]
[1750459653247,3.2078,2384.5,2384.2,10.66]
[1750459653549,1.4289,2384.7,2384.6,0.83863]
[1750459653745,3.2078,2385.1,2384.5,3.2078]
[1750459654062,3.2078,2385.1,2385.0,0.83849]
[1750459654247,1.4289,2385.6,2385.2,0.83841]
[1750459654248,3.2078,2385.5,2385.2,0.83841]
[1750459654554,1.4289,2385.4,2385.2,0.83841]
[1750459654752,3.2078,2385.5,2385.4,0.83835]